[Event "Late-Titled-Tuesday-Blitz-May-07-2024"]
[Site "Chess.com"]
[Date "2024.05.07"]
[Round "11"]
[White "cthulhuuu"]
[Black "Goryachkina"]
[Result "0-1"]
[WhiteElo "2552"]
[BlackElo "2694"]
[TimeControl "180+1"]
[EndTime "16:07:09 PDT"]
[Termination "Goryachkina won on time"]

1. e4 {[%clk 0:02:59.7]} 1... c5 {[%clk 0:03:00.1]} 2. Nf3 {[%clk 0:03:00]} 2...
Nc6 {[%clk 0:03:00.2]} 3. g3 {[%clk 0:03:00.4]} 3... e6 {[%clk 0:02:55.7]} 4. d3
{[%clk 0:03:00.6]} 4... Nf6 {[%clk 0:02:55.2]} 5. Bg2 {[%clk 0:03:00.9]} 5... d5
{[%clk 0:02:55.3]} 6. Nbd2 {[%clk 0:03:01.5]} 6... g6 {[%clk 0:02:52.3]} 7. O-O
{[%clk 0:03:01.5]} 7... Bg7 {[%clk 0:02:52.5]} 8. Re1 {[%clk 0:03:02.1]} 8...
O-O {[%clk 0:02:52.2]} 9. Qe2 {[%clk 0:03:02.7]} 9... h6 {[%clk 0:02:49.6]} 10.
h4 {[%clk 0:03:02.8]} 10... e5 {[%clk 0:02:46.9]} 11. exd5 {[%clk 0:02:59.8]}
11... Nxd5 {[%clk 0:02:47]} 12. Nc4 {[%clk 0:03:00.1]} 12... Re8 {[%clk
0:02:44.6]} 13. a4 {[%clk 0:03:00.4]} 13... Bg4 {[%clk 0:02:38]} 14. c3 {[%clk
0:02:59.9]} 14... Qc7 {[%clk 0:02:31.3]} 15. Qc2 {[%clk 0:02:58.9]} 15... Rad8
{[%clk 0:02:28.6]} 16. Qb3 {[%clk 0:02:54.1]} 16... Nb6 {[%clk 0:02:10.8]} 17.
a5 {[%clk 0:02:45.8]} 17... Nxc4 {[%clk 0:02:08.9]} 18. Qxc4 {[%clk 0:02:46.7]}
18... Bf5 {[%clk 0:01:27.4]} 19. Qxc5 {[%clk 0:02:37]} 19... Bf8 {[%clk
0:01:26.6]} 20. Qe3 {[%clk 0:01:51.7]} 20... Rxd3 {[%clk 0:01:26.4]} 21. Qe2
{[%clk 0:01:52.5]} 21... e4 {[%clk 0:01:26.8]} 22. Qxd3 {[%clk 0:01:38.9]} 22...
exf3 {[%clk 0:01:04.3]} 23. Rxe8 {[%clk 0:01:39.8]} 23... Bxd3 {[%clk
0:01:02.8]} 24. Bxf3 {[%clk 0:01:16]} 24... Ne5 {[%clk 0:01:02.7]} 25. Bg2
{[%clk 0:01:09.5]} 25... Bb5 {[%clk 0:00:54.5]} 26. Ra8 {[%clk 0:01:05.8]} 26...
Ng4 {[%clk 0:00:53.7]} 27. Bf3 {[%clk 0:00:37.6]} 27... Qe7 {[%clk 0:00:36.4]}
28. Bf4 {[%clk 0:00:23.5]} 28... g5 {[%clk 0:00:35.9]} 29. hxg5 {[%clk
0:00:12.3]} 29... hxg5 {[%clk 0:00:36.8]} 30. Bd2 {[%clk 0:00:12.7]} 30... Ne5
{[%clk 0:00:36.8]} 31. Bg2 {[%clk 0:00:08.1]} 31... Qf6 {[%clk 0:00:33.1]} 32.
Be3 {[%clk 0:00:07.4]} 32... Nf3+ {[%clk 0:00:23.9]} 33. Bxf3 {[%clk 0:00:02.4]}
33... Qxf3 {[%clk 0:00:24.2]} 34. Bc5 {[%clk 0:00:01.9]} 34... Bc6 {[%clk
0:00:24.3]} 35. Rxf8+ {[%clk 0:00:02.1]} 35... Kg7 {[%clk 0:00:24.5]} 36. Kf1
{[%clk 0:00:02.1]} 36... Qh1+ {[%clk 0:00:24.6]} 37. Ke2 {[%clk 0:00:02.5]}
37... Qxa1 {[%clk 0:00:24.9]} 38. Rc8 {[%clk 0:00:01.5]} 38... Qxb2+ {[%clk
0:00:25.1]} 39. Kd3 {[%clk 0:00:01.6]} 39... Bb5+ {[%clk 0:00:20.4]} 0-1

[Event "Late-Titled-Tuesday-Blitz-May-07-2024"]
[Site "Chess.com"]
[Date "2024.05.07"]
[Round "11"]
[White "klifus"]
[Black "ploxoi"]
[Result "0-1"]
[WhiteElo "2140"]
[BlackElo "2322"]
[TimeControl "180+1"]
[EndTime "16:07:10 PDT"]
[Termination "ploxoi won on time"]

1. e4 {[%clk 0:02:54]} 1... c6 {[%clk 0:02:59.6]} 2. d3 {[%clk 0:02:52]} 2... d5
{[%clk 0:02:59.7]} 3. Nd2 {[%clk 0:02:52]} 3... Nf6 {[%clk 0:02:50.9]} 4. Ngf3
{[%clk 0:02:51.6]} 4... Bg4 {[%clk 0:02:48.7]} 5. g3 {[%clk 0:02:50.6]} 5...
Nbd7 {[%clk 0:02:45.4]} 6. Bg2 {[%clk 0:02:50.5]} 6... e6 {[%clk 0:02:44.7]} 7.
O-O {[%clk 0:02:49.9]} 7... Bd6 {[%clk 0:02:42.8]} 8. Re1 {[%clk 0:02:47.2]}
8... Qc7 {[%clk 0:02:39.5]} 9. h3 {[%clk 0:02:44.1]} 9... Bh5 {[%clk 0:02:39.3]}
10. g4 {[%clk 0:02:33.9]} 10... Bg6 {[%clk 0:02:38.8]} 11. Nh4 {[%clk
0:02:03.3]} 11... dxe4 {[%clk 0:02:17.3]} 12. dxe4 {[%clk 0:01:55.2]} 12... Bf4
{[%clk 0:02:14.9]} 13. Nc4 {[%clk 0:01:43.6]} 13... Bxc1 {[%clk 0:02:09.6]} 14.
Rxc1 {[%clk 0:01:41.3]} 14... O-O {[%clk 0:02:03.9]} 15. Nxg6 {[%clk 0:01:37.4]}
15... hxg6 {[%clk 0:02:03.7]} 16. e5 {[%clk 0:01:31.8]} 16... Nd5 {[%clk
0:02:03.8]} 17. Qd4 {[%clk 0:01:18]} 17... Rad8 {[%clk 0:01:57.6]} 18. Qe4
{[%clk 0:01:15.5]} 18... Nc5 {[%clk 0:01:45.8]} 19. Qf3 {[%clk 0:01:08]} 19...
Nd7 {[%clk 0:01:44.1]} 20. Qg3 {[%clk 0:01:06.6]} 20... b5 {[%clk 0:01:30.4]}
21. Nd2 {[%clk 0:01:06]} 21... Nc5 {[%clk 0:01:25.9]} 22. b4 {[%clk 0:01:03.1]}
22... Nxb4 {[%clk 0:01:19.8]} 23. Qc3 {[%clk 0:00:58.2]} 23... Nba6 {[%clk
0:01:13.5]} 24. Nb3 {[%clk 0:00:53.4]} 24... Nxb3 {[%clk 0:01:05]} 25. cxb3
{[%clk 0:00:52.5]} 25... c5 {[%clk 0:01:04.6]} 26. a4 {[%clk 0:00:48.6]} 26...
bxa4 {[%clk 0:00:57.1]} 27. bxa4 {[%clk 0:00:47.7]} 27... Rd4 {[%clk 0:00:57.1]}
28. a5 {[%clk 0:00:41.6]} 28... Rfd8 {[%clk 0:00:54]} 29. Bf1 {[%clk 0:00:40.4]}
29... Nb4 {[%clk 0:00:45.4]} 30. Qxc5 {[%clk 0:00:27.1]} 30... Qb8 {[%clk
0:00:36.8]} 31. Rb1 {[%clk 0:00:23.3]} 31... R8d5 {[%clk 0:00:34.2]} 32. Qe7
{[%clk 0:00:21.6]} 32... Rd7 {[%clk 0:00:31]} 33. Qc5 {[%clk 0:00:20.3]} 33...
R7d5 {[%clk 0:00:23.5]} 34. Qe7 {[%clk 0:00:19.8]} 34... Rf4 {[%clk 0:00:13.3]}
35. a6 {[%clk 0:00:11.7]} 35... Rdd4 {[%clk 0:00:13.4]} 36. Qb7 {[%clk
0:00:10.1]} 36... Rd8 {[%clk 0:00:11.8]} 37. Rec1 {[%clk 0:00:05.1]} 37... Kh7
{[%clk 0:00:10.5]} 38. Rc4 {[%clk 0:00:03.1]} 38... Rxc4 {[%clk 0:00:09.6]} 39.
Bxc4 {[%clk 0:00:02.8]} 39... Qxb7 {[%clk 0:00:10]} 40. axb7 {[%clk 0:00:01.6]}
40... Nc6 {[%clk 0:00:10.2]} 0-1

[Event "Late-Titled-Tuesday-Blitz-May-07-2024"]
[Site "Chess.com"]
[Date "2024.05.07"]
[Round "11"]
[White "NovakRatko"]
[Black "lluiss"]
[Result "1-0"]
[WhiteElo "2405"]
[BlackElo "2238"]
[TimeControl "180+1"]
[EndTime "16:07:11 PDT"]
[Termination "NovakRatko won on time"]

1. d4 {[%clk 0:02:56.9]} 1... Nf6 {[%clk 0:02:59.2]} 2. c4 {[%clk 0:02:56.9]}
2... g6 {[%clk 0:02:59]} 3. Nc3 {[%clk 0:02:55.6]} 3... d5 {[%clk 0:02:58.8]} 4.
f3 {[%clk 0:02:55.8]} 4... Bg7 {[%clk 0:02:54.9]} 5. e4 {[%clk 0:02:55.3]} 5...
dxe4 {[%clk 0:02:47.9]} 6. fxe4 {[%clk 0:02:56.2]} 6... O-O {[%clk 0:02:45.6]}
7. Be2 {[%clk 0:02:51.7]} 7... Nc6 {[%clk 0:02:39.2]} 8. e5 {[%clk 0:02:37.4]}
8... Nd7 {[%clk 0:02:00.4]} 9. Nf3 {[%clk 0:02:34.8]} 9... Nb6 {[%clk
0:01:58.1]} 10. h3 {[%clk 0:02:27.8]} 10... f6 {[%clk 0:01:44.2]} 11. exf6
{[%clk 0:02:18.5]} 11... Bxf6 {[%clk 0:01:43.9]} 12. Be3 {[%clk 0:02:10.5]}
12... e5 {[%clk 0:01:37.6]} 13. d5 {[%clk 0:02:05.5]} 13... Na5 {[%clk
0:01:15.4]} 14. Bxb6 {[%clk 0:01:52.1]} 14... axb6 {[%clk 0:01:13.8]} 15. O-O
{[%clk 0:01:52.1]} 15... e4 {[%clk 0:00:59.2]} 16. Nxe4 {[%clk 0:01:49.9]} 16...
Bxb2 {[%clk 0:00:59.2]} 17. Rb1 {[%clk 0:01:50]} 17... Bg7 {[%clk 0:00:56.2]}
18. Nfg5 {[%clk 0:01:45.7]} 18... Bf5 {[%clk 0:00:53.7]} 19. Ne6 {[%clk
0:01:34.5]} 19... Bxe6 {[%clk 0:00:41.9]} 20. dxe6 {[%clk 0:01:33.9]} 20... Qh4
{[%clk 0:00:25.6]} 21. Bg4 {[%clk 0:00:53.6]} 21... Rad8 {[%clk 0:00:17.6]} 22.
Qe2 {[%clk 0:00:42.9]} 22... Rd4 {[%clk 0:00:11.9]} 23. g3 {[%clk 0:00:37.1]}
23... Qe7 {[%clk 0:00:11]} 24. Rxf8+ {[%clk 0:00:34.8]} 24... Bxf8 {[%clk
0:00:09.1]} 25. Qf3 {[%clk 0:00:31.1]} 25... Bg7 {[%clk 0:00:08.3]} 26. Rf1
{[%clk 0:00:29.7]} 26... Rd8 {[%clk 0:00:03.1]} 27. Qf7+ {[%clk 0:00:22.8]}
27... Qxf7 {[%clk 0:00:03.3]} 28. exf7+ {[%clk 0:00:23.3]} 28... Kf8 {[%clk
0:00:03.4]} 29. Ng5 {[%clk 0:00:23.9]} 29... Rd6 {[%clk 0:00:03.4]} 30. Ne6+
{[%clk 0:00:24.1]} 30... Rxe6 {[%clk 0:00:03.6]} 31. Bxe6 {[%clk 0:00:24.5]}
31... Bd4+ {[%clk 0:00:04.2]} 32. Kg2 {[%clk 0:00:24.5]} 32... Nc6 {[%clk
0:00:05.1]} 33. Bd5 {[%clk 0:00:24.4]} 33... Ne5 {[%clk 0:00:04.9]} 34. a4
{[%clk 0:00:20.4]} 34... c6 {[%clk 0:00:04.5]} 35. Be6 {[%clk 0:00:19.1]} 35...
Bc5 {[%clk 0:00:04.7]} 36. h4 {[%clk 0:00:18.4]} 36... Nd3 {[%clk 0:00:03.6]}
37. g4 {[%clk 0:00:17.7]} 37... Ne5 {[%clk 0:00:03.5]} 38. g5 {[%clk 0:00:17.7]}
38... Kg7 {[%clk 0:00:03.6]} 39. Kg3 {[%clk 0:00:16.3]} 39... Bf8 {[%clk
0:00:03.5]} 40. Kf4 {[%clk 0:00:15.5]} 40... Bd6 {[%clk 0:00:03.6]} 41. Ke4
{[%clk 0:00:15.4]} 1-0

[Event "Late-Titled-Tuesday-Blitz-May-07-2024"]
[Site "Chess.com"]
[Date "2024.05.07"]
[Round "11"]
[White "Sinquefield"]
[Black "CarlosjPineror"]
[Result "1/2-1/2"]
[WhiteElo "2560"]
[BlackElo "2645"]
[TimeControl "180+1"]
[EndTime "16:07:12 PDT"]
[Termination "Game drawn by agreement"]

1. e4 {[%clk 0:03:00.9]} 1... c5 {[%clk 0:02:59.8]} 2. Nf3 {[%clk 0:03:01.3]}
2... e6 {[%clk 0:03:00.2]} 3. d4 {[%clk 0:03:01.8]} 3... cxd4 {[%clk 0:03:01.1]}
4. Nxd4 {[%clk 0:03:02.4]} 4... a6 {[%clk 0:03:01.7]} 5. Nc3 {[%clk 0:03:02.9]}
5... Qc7 {[%clk 0:03:02.4]} 6. g3 {[%clk 0:03:03.4]} 6... Nf6 {[%clk 0:03:03]}
7. Bg2 {[%clk 0:03:04]} 7... h5 {[%clk 0:03:03.7]} 8. O-O {[%clk 0:03:03.4]}
8... h4 {[%clk 0:03:04.2]} 9. Re1 {[%clk 0:03:03.6]} 9... hxg3 {[%clk
0:03:04.6]} 10. hxg3 {[%clk 0:03:02.5]} 10... d6 {[%clk 0:03:04.8]} 11. Bf4
{[%clk 0:02:52.5]} 11... e5 {[%clk 0:02:55.6]} 12. Nd5 {[%clk 0:02:52]} 12...
Nxd5 {[%clk 0:02:56.2]} 13. exd5 {[%clk 0:02:52.4]} 13... Be7 {[%clk 0:02:57.1]}
14. Qf3 {[%clk 0:02:32.1]} 14... g6 {[%clk 0:02:46]} 15. Re2 {[%clk 0:02:10.9]}
15... O-O {[%clk 0:02:25]} 16. Rae1 {[%clk 0:02:08]} 16... Bf6 {[%clk 0:02:22]}
17. Bh6 {[%clk 0:02:07.1]} 17... Bg7 {[%clk 0:02:21.9]} 18. Bxg7 {[%clk
0:01:59.8]} 18... Kxg7 {[%clk 0:02:22.8]} 19. Nb3 {[%clk 0:01:56.4]} 19... Nd7
{[%clk 0:02:20]} 20. Qe3 {[%clk 0:01:54]} 20... f5 {[%clk 0:02:13.6]} 21. f4
{[%clk 0:01:52.3]} 21... e4 {[%clk 0:02:13.1]} 22. g4 {[%clk 0:01:51.2]} 22...
Nf6 {[%clk 0:02:11]} 23. gxf5 {[%clk 0:01:51.6]} 23... Bxf5 {[%clk 0:02:10.6]}
24. Bh3 {[%clk 0:01:44.8]} 24... Bxh3 {[%clk 0:02:01.8]} 25. Qxh3 {[%clk
0:01:44.5]} 25... Rh8 {[%clk 0:02:02.4]} 26. Qg3 {[%clk 0:01:34]} 26... Rh5
{[%clk 0:01:41.8]} 27. Rg2 {[%clk 0:01:29.5]} 27... Rh6 {[%clk 0:01:26.2]} 28.
Nd4 {[%clk 0:01:22.7]} 28... Qc5 {[%clk 0:01:25]} 29. Qe3 {[%clk 0:01:05.8]}
29... Qxd5 {[%clk 0:01:23.3]} 30. Rg5 {[%clk 0:01:05.3]} 30... Rah8 {[%clk
0:00:49.7]} 31. Rxd5 {[%clk 0:00:51.8]} 31... Rh1+ {[%clk 0:00:48.8]} 32. Kg2
{[%clk 0:00:47.3]} 32... R8h2+ {[%clk 0:00:35.7]} 33. Kg3 {[%clk 0:00:47.7]}
33... Rh3+ {[%clk 0:00:35.4]} 34. Kg2 {[%clk 0:00:40.1]} 34... Rxe3 {[%clk
0:00:28.3]} 35. Rxe3 {[%clk 0:00:38.3]} 35... Nxd5 {[%clk 0:00:28.6]} 36. Rxe4
{[%clk 0:00:38.9]} 36... Rd1 {[%clk 0:00:22.6]} 37. c4 {[%clk 0:00:36.4]} 37...
Nf6 {[%clk 0:00:21.4]} 38. Re7+ {[%clk 0:00:33.2]} 38... Kf8 {[%clk 0:00:20]}
39. Re6 {[%clk 0:00:31.7]} 39... Rxd4 {[%clk 0:00:19.8]} 40. Rxf6+ {[%clk
0:00:31.9]} 40... Ke7 {[%clk 0:00:19.8]} 41. Rxg6 {[%clk 0:00:32]} 41... Rxc4
{[%clk 0:00:18.1]} 42. Kf3 {[%clk 0:00:25.7]} 42... b5 {[%clk 0:00:16.5]} 43.
Rg7+ {[%clk 0:00:23.5]} 43... Ke6 {[%clk 0:00:16.3]} 44. Ra7 {[%clk 0:00:22]}
44... Ra4 {[%clk 0:00:10.2]} 45. a3 {[%clk 0:00:21.8]} 45... b4 {[%clk
0:00:10.9]} 46. axb4 {[%clk 0:00:21.2]} 46... Rxb4 {[%clk 0:00:11.8]} 47. Rxa6
{[%clk 0:00:21.4]} 47... Rxb2 {[%clk 0:00:12.5]} 48. Ra5 {[%clk 0:00:20.1]}
48... Rb3+ {[%clk 0:00:12.6]} 49. Kg4 {[%clk 0:00:19.6]} 1/2-1/2

[Event "Late-Titled-Tuesday-Blitz-May-07-2024"]
[Site "Chess.com"]
[Date "2024.05.07"]
[Round "11"]
[White "ChessLover0108"]
[Black "Polish_fighter3000"]
[Result "1-0"]
[WhiteElo "2971"]
[BlackElo "3098"]
[TimeControl "180+1"]
[EndTime "16:07:17 PDT"]
[Termination "ChessLover0108 won by checkmate"]

1. Nf3 {[%clk 0:03:00.9]} 1... Nf6 {[%clk 0:03:00.4]} 2. c4 {[%clk 0:03:01.2]}
2... g6 {[%clk 0:03:00]} 3. Nc3 {[%clk 0:03:01.4]} 3... Bg7 {[%clk 0:03:00.6]}
4. e4 {[%clk 0:03:01.9]} 4... d6 {[%clk 0:03:00.9]} 5. d4 {[%clk 0:03:02.5]}
5... O-O {[%clk 0:03:01.6]} 6. Be2 {[%clk 0:03:03.2]} 6... Nc6 {[%clk 0:03:00]}
7. Be3 {[%clk 0:03:01.4]} 7... Re8 {[%clk 0:02:59.1]} 8. d5 {[%clk 0:02:49.6]}
8... Nb8 {[%clk 0:02:55.9]} 9. O-O {[%clk 0:02:48.8]} 9... e6 {[%clk 0:02:51.9]}
10. Qc2 {[%clk 0:02:32.8]} 10... exd5 {[%clk 0:02:41.7]} 11. cxd5 {[%clk
0:02:33.7]} 11... c5 {[%clk 0:02:33.3]} 12. h3 {[%clk 0:02:15.4]} 12... b6
{[%clk 0:02:16.7]} 13. Nd2 {[%clk 0:02:09.1]} 13... Na6 {[%clk 0:02:13.2]} 14.
a3 {[%clk 0:02:01.6]} 14... Nc7 {[%clk 0:02:12.4]} 15. b4 {[%clk 0:01:57.9]}
15... Nd7 {[%clk 0:01:57.1]} 16. Rab1 {[%clk 0:01:56.6]} 16... Ne5 {[%clk
0:01:04.2]} 17. Rfe1 {[%clk 0:01:42.3]} 17... f5 {[%clk 0:01:03.3]} 18. f4
{[%clk 0:01:39.7]} 18... Nf7 {[%clk 0:01:03.1]} 19. Bf3 {[%clk 0:01:31.2]} 19...
fxe4 {[%clk 0:01:00.8]} 20. Ndxe4 {[%clk 0:01:16.3]} 20... Bf5 {[%clk 0:01:01]}
21. Bf2 {[%clk 0:01:11.8]} 21... cxb4 {[%clk 0:00:47.5]} 22. axb4 {[%clk
0:01:00.8]} 22... Rc8 {[%clk 0:00:48.4]} 23. Qd2 {[%clk 0:01:01.4]} 23... Bxc3
{[%clk 0:00:45.1]} 24. Nxc3 {[%clk 0:00:44.2]} 24... Bxb1 {[%clk 0:00:44]} 25.
Rxb1 {[%clk 0:00:45.1]} 25... Rf8 {[%clk 0:00:18.5]} 26. Ne4 {[%clk 0:00:38.7]}
26... Ne8 {[%clk 0:00:18.1]} 27. Bd4 {[%clk 0:00:37.5]} 27... Rc4 {[%clk
0:00:17.7]} 28. Ba1 {[%clk 0:00:34.6]} 28... b5 {[%clk 0:00:15.3]} 29. Qb2
{[%clk 0:00:30.2]} 29... h6 {[%clk 0:00:12.3]} 30. Re1 {[%clk 0:00:27.9]} 30...
Kh7 {[%clk 0:00:11.8]} 31. Bg4 {[%clk 0:00:27.4]} 31... a5 {[%clk 0:00:06]} 32.
f5 {[%clk 0:00:12.6]} 32... Ne5 {[%clk 0:00:03.3]} 33. fxg6+ {[%clk 0:00:13]}
33... Kxg6 {[%clk 0:00:03.6]} 34. Nxd6 {[%clk 0:00:05.5]} 34... Qb6+ {[%clk
0:00:03.6]} 35. Kh1 {[%clk 0:00:03.3]} 35... Nxg4 {[%clk 0:00:03.7]} 36. Re6+
{[%clk 0:00:03.2]} 36... Nef6 {[%clk 0:00:03.3]} 37. hxg4 {[%clk 0:00:02.5]}
37... Rf4 {[%clk 0:00:03.5]} 38. Nf5 {[%clk 0:00:01.7]} 38... Rf1+ {[%clk
0:00:02.8]} 39. Kh2 {[%clk 0:00:02.4]} 39... Qg1+ {[%clk 0:00:03]} 40. Kg3
{[%clk 0:00:03.1]} 40... Kg5 {[%clk 0:00:02.2]} 41. Qd2+ {[%clk 0:00:02.8]}
41... Kg6 {[%clk 0:00:02]} 42. Qxh6+ {[%clk 0:00:03.5]} 42... Kf7 {[%clk
0:00:02.7]} 43. Qg7# {[%clk 0:00:04.1]} 1-0

[Event "Late-Titled-Tuesday-Blitz-May-07-2024"]
[Site "Chess.com"]
[Date "2024.05.07"]
[Round "11"]
[White "ccccvhhhj"]
[Black "Mikhail_Golubev"]
[Result "1-0"]
[WhiteElo "2509"]
[BlackElo "2599"]
[TimeControl "180+1"]
[EndTime "16:07:18 PDT"]
[Termination "ccccvhhhj won on time"]

1. e4 {[%clk 0:03:00.9]} 1... c5 {[%clk 0:03:00]} 2. Nf3 {[%clk 0:03:01]} 2...
d6 {[%clk 0:03:00.3]} 3. d4 {[%clk 0:03:01.5]} 3... Nf6 {[%clk 0:03:00.4]} 4.
Nc3 {[%clk 0:03:01.5]} 4... cxd4 {[%clk 0:03:00.7]} 5. Nxd4 {[%clk 0:03:02.4]}
5... g6 {[%clk 0:03:00.8]} 6. Be3 {[%clk 0:03:02.1]} 6... Bg7 {[%clk 0:03:01]}
7. f3 {[%clk 0:03:02.8]} 7... Nc6 {[%clk 0:02:58.5]} 8. Qd2 {[%clk 0:03:03.5]}
8... O-O {[%clk 0:02:58.5]} 9. g4 {[%clk 0:03:04.2]} 9... Nxd4 {[%clk
0:02:56.7]} 10. Bxd4 {[%clk 0:03:05.1]} 10... Be6 {[%clk 0:02:56.9]} 11. h4
{[%clk 0:03:05.6]} 11... Qa5 {[%clk 0:02:53.2]} 12. h5 {[%clk 0:03:06.3]} 12...
Rfc8 {[%clk 0:02:50.5]} 13. hxg6 {[%clk 0:03:06.7]} 13... fxg6 {[%clk
0:02:46.4]} 14. g5 {[%clk 0:03:07.2]} 14... Nh5 {[%clk 0:02:42]} 15. Bxg7 {[%clk
0:03:06.2]} 15... Kxg7 {[%clk 0:02:39.2]} 16. Bh3 {[%clk 0:03:06.7]} 16... Bxh3
{[%clk 0:02:32.3]} 17. Rxh3 {[%clk 0:03:07.6]} 17... Qe5 {[%clk 0:02:17.2]} 18.
O-O-O {[%clk 0:03:07]} 18... Rc5 {[%clk 0:01:44.3]} 19. Nd5 {[%clk 0:02:41.6]}
19... Rac8 {[%clk 0:01:28.9]} 20. c3 {[%clk 0:02:41.2]} 20... e6 {[%clk
0:01:11.6]} 21. Nb4 {[%clk 0:02:15.5]} 21... Qxg5 {[%clk 0:01:01.4]} 22. Qxg5
{[%clk 0:02:15.2]} 22... Rxg5 {[%clk 0:01:01.9]} 23. Rxd6 {[%clk 0:02:16.1]}
23... Rc7 {[%clk 0:01:02]} 24. Nd3 {[%clk 0:02:05]} 24... e5 {[%clk 0:00:54.4]}
25. Rh1 {[%clk 0:01:52]} 25... Nf6 {[%clk 0:00:37.9]} 26. Re6 {[%clk 0:01:37.8]}
26... h5 {[%clk 0:00:13.6]} 27. Nxe5 {[%clk 0:01:17.2]} 27... Rg2 {[%clk
0:00:13.2]} 28. Nd3 {[%clk 0:01:11.1]} 28... Rg3 {[%clk 0:00:10.5]} 29. Rf1
{[%clk 0:00:44.3]} 29... h4 {[%clk 0:00:10]} 30. Kd2 {[%clk 0:00:40]} 30... h3
{[%clk 0:00:10]} 31. Ke3 {[%clk 0:00:39.4]} 31... h2 {[%clk 0:00:09.5]} 32. Rh1
{[%clk 0:00:39.7]} 32... Rg2 {[%clk 0:00:06.5]} 33. Nf4 {[%clk 0:00:33.3]} 33...
Rxb2 {[%clk 0:00:04.9]} 34. Rxf6 {[%clk 0:00:32.8]} 34... Rxc3+ {[%clk
0:00:04.1]} 35. Kd4 {[%clk 0:00:33.3]} 35... Rxf3 {[%clk 0:00:03.6]} 36. Rxg6+
{[%clk 0:00:31.4]} 36... Kf7 {[%clk 0:00:03.3]} 37. Rg4 {[%clk 0:00:26.4]} 37...
Rb4+ {[%clk 0:00:02.6]} 38. Ke5 {[%clk 0:00:25.1]} 38... Ra4 {[%clk 0:00:02.5]}
39. Rxh2 {[%clk 0:00:20.6]} 39... Ra5+ {[%clk 0:00:01.4]} 40. Nd5 {[%clk
0:00:21.3]} 40... Ra6 {[%clk 0:00:00.1]} 41. Rh7+ {[%clk 0:00:21.7]} 41... Kf8
{[%clk 0:00:00.3]} 42. Rxb7 {[%clk 0:00:16.3]} 42... Rf7 {[%clk 0:00:00.4]} 43.
Rxf7+ {[%clk 0:00:14.3]} 43... Kxf7 {[%clk 0:00:01.3]} 44. Rg2 {[%clk
0:00:14.9]} 44... Ke8 {[%clk 0:00:01.3]} 45. Nc7+ {[%clk 0:00:14.6]} 1-0

[Event "Late-Titled-Tuesday-Blitz-May-07-2024"]
[Site "Chess.com"]
[Date "2024.05.07"]
[Round "11"]
[White "nochewycandy"]
[Black "CarrotsandPizza"]
[Result "1/2-1/2"]
[WhiteElo "2760"]
[BlackElo "2590"]
[TimeControl "180+1"]
[EndTime "16:07:19 PDT"]
[Termination "Game drawn by repetition"]

1. d4 {[%clk 0:03:00.9]} 1... Nf6 {[%clk 0:02:59.8]} 2. Nf3 {[%clk 0:03:01.2]}
2... g6 {[%clk 0:03:00]} 3. Bg5 {[%clk 0:03:01.8]} 3... Bg7 {[%clk 0:03:00.2]}
4. Nbd2 {[%clk 0:03:02.1]} 4... O-O {[%clk 0:02:59.1]} 5. e4 {[%clk 0:03:02.6]}
5... d6 {[%clk 0:02:59.2]} 6. Bd3 {[%clk 0:03:02.5]} 6... c5 {[%clk 0:02:59.3]}
7. c3 {[%clk 0:03:02.3]} 7... cxd4 {[%clk 0:02:58.6]} 8. cxd4 {[%clk 0:03:03.2]}
8... Nc6 {[%clk 0:02:58.8]} 9. h3 {[%clk 0:03:03.5]} 9... Qb6 {[%clk 0:02:57.3]}
10. Nb3 {[%clk 0:03:02.2]} 10... a5 {[%clk 0:02:56.6]} 11. a4 {[%clk 0:03:00.8]}
11... Nb4 {[%clk 0:02:43.1]} 12. O-O {[%clk 0:02:59.9]} 12... Nxd3 {[%clk
0:02:41]} 13. Qxd3 {[%clk 0:03:00.8]} 13... Re8 {[%clk 0:02:39.7]} 14. Rfc1
{[%clk 0:02:57.4]} 14... Nxe4 {[%clk 0:02:37]} 15. Qxe4 {[%clk 0:02:38.2]} 15...
Qxb3 {[%clk 0:02:37.1]} 16. Rc7 {[%clk 0:02:37.4]} 16... Bf5 {[%clk 0:02:36.7]}
17. Qxb7 {[%clk 0:02:37.2]} 17... Qxb7 {[%clk 0:02:27.2]} 18. Rxb7 {[%clk
0:02:38.1]} 18... f6 {[%clk 0:02:27.4]} 19. Bd2 {[%clk 0:02:34.7]} 19... Be4
{[%clk 0:02:27.4]} 20. Rb5 {[%clk 0:02:34.5]} 20... Bxf3 {[%clk 0:02:14.9]} 21.
gxf3 {[%clk 0:02:35.4]} 21... Reb8 {[%clk 0:02:13.9]} 22. Bc3 {[%clk 0:02:32.6]}
22... Rxb5 {[%clk 0:02:09.2]} 23. axb5 {[%clk 0:02:32.6]} 23... a4 {[%clk
0:02:03]} 24. Ra3 {[%clk 0:02:08.9]} 24... Rb8 {[%clk 0:01:58.4]} 25. Rxa4
{[%clk 0:02:09]} 25... Rxb5 {[%clk 0:01:58.4]} 26. b4 {[%clk 0:02:04.8]} 26...
Kf7 {[%clk 0:01:51.5]} 27. Ra5 {[%clk 0:02:03.9]} 27... Rb7 {[%clk 0:01:48.6]}
28. Kf1 {[%clk 0:01:58.5]} 28... Ke6 {[%clk 0:01:45.4]} 29. Ke2 {[%clk
0:01:56.8]} 29... d5 {[%clk 0:01:28.6]} 30. Kd3 {[%clk 0:01:56.4]} 30... Kd6
{[%clk 0:01:27.9]} 31. b5 {[%clk 0:01:53.4]} 31... Kd7 {[%clk 0:01:18.3]} 32.
Bb4 {[%clk 0:01:51.2]} 32... Bh6 {[%clk 0:01:17.7]} 33. Bc5 {[%clk 0:01:50.6]}
33... Bf4 {[%clk 0:01:17.4]} 34. b6 {[%clk 0:01:46.5]} 34... Bd6 {[%clk
0:01:13.7]} 35. Ra8 {[%clk 0:01:42.9]} 35... Kc6 {[%clk 0:01:10.8]} 36. Rh8
{[%clk 0:01:35.7]} 36... Bxc5 {[%clk 0:01:08.9]} 37. dxc5 {[%clk 0:01:22.7]}
37... Kxc5 {[%clk 0:01:06]} 38. Rxh7 {[%clk 0:01:22.2]} 38... g5 {[%clk
0:01:02.8]} 39. f4 {[%clk 0:00:47.4]} 39... gxf4 {[%clk 0:01:02]} 40. h4 {[%clk
0:00:48]} 40... Kd6 {[%clk 0:01:02.3]} 41. h5 {[%clk 0:00:46.6]} 41... Rxb6
{[%clk 0:01:02.3]} 42. h6 {[%clk 0:00:47.2]} 42... Rb3+ {[%clk 0:01:02.1]} 43.
Ke2 {[%clk 0:00:47]} 43... Rh3 {[%clk 0:01:00.1]} 44. Rh8 {[%clk 0:00:46.1]}
44... Ke5 {[%clk 0:00:57.6]} 45. f3 {[%clk 0:00:44]} 45... Kf5 {[%clk 0:00:55]}
46. h7 {[%clk 0:00:39.7]} 46... e5 {[%clk 0:00:54.2]} 47. Rd8 {[%clk 0:00:33.6]}
47... Rxh7 {[%clk 0:00:48.7]} 48. Rxd5 {[%clk 0:00:34.5]} 48... Rh2+ {[%clk
0:00:44.1]} 49. Kf1 {[%clk 0:00:30.8]} 49... Rb2 {[%clk 0:00:42.4]} 50. Ra5
{[%clk 0:00:29.4]} 50... Kg5 {[%clk 0:00:42.1]} 51. Ra8 {[%clk 0:00:29.1]} 51...
Kh4 {[%clk 0:00:39.6]} 52. Rg8 {[%clk 0:00:29.6]} 52... Kh3 {[%clk 0:00:39.6]}
53. Rg7 {[%clk 0:00:29.3]} 53... f5 {[%clk 0:00:39.6]} 54. Rg5 {[%clk
0:00:28.6]} 54... Rb1+ {[%clk 0:00:19.4]} 55. Kf2 {[%clk 0:00:28.6]} 55... Rb2+
{[%clk 0:00:19.4]} 56. Kf1 {[%clk 0:00:29]} 56... Rb5 {[%clk 0:00:19.4]} 57. Kf2
{[%clk 0:00:18.4]} 57... Rb2+ {[%clk 0:00:15.4]} 58. Kf1 {[%clk 0:00:18.3]}
1/2-1/2